[Event "Hungarian Youth-ch U14 2022"]
[Site "Eger"]
[Date "2022.07.23"]
[Round "1.1"]
[White "Bodrogi, Bendeguz"]
[Black "Szegedy, Matyas"]
[Result "1-0"]
[ECO "E05"]
[WhiteElo "2170"]
[BlackElo "2152"]
[Annotator "TA"]
[PlyCount "57"]
[EventDate "2022.07.21"]
[EventType "tourn"]
[EventCountry "HUN"]
[SourceTitle "playchess.com"]
[Source "ChessBase"]
[SourceQuality "1"]
[TimeControl "40/5400+30:1800+30"]

{[%evp 20,57,50,53,110,64,73,46,101,101,119,142,196,200,200,191,201,201,274,275,430,440,421,421,553,543,561,564,562,558,536,478,450,468,458,398,495,478,506,472]} 1. d4 {[%emt 0:00:38]} Nf6 {[%emt 0:01:39]} 2. c4 {[%emt 0:00:13]} e6 {[%emt 0:01:13]} 3. Nf3 {[%emt 0:00:22]} d5 {[%emt 0:00:11]} 4. g3 {[%emt 0:00:39]} dxc4 {[%emt 0:02:18]} 5. Bg2 {[%emt 0:01:02]} Be7 {[%emt 0:01:47]} 6. O-O {[%emt 0:00:09]} O-O {[%emt 0:00:57]} 7. Na3 {[%emt 0:03:19]} c5 {[%emt 0:06:50]} 8. Nxc4 {[%emt 0:00:16]} Nc6 {[%emt 0:00:05]} 9. dxc5 {[%emt 0:03:02]} Bxc5 {[%emt 0:02:35]} 10. a3 {[%emt 0:04:36]} Qxd1 {[%emt 0:26:04]} 11. Rxd1 {[%emt 0:01:29]} Ne4 {[%emt 0:00:06] E05: Open Catalan: 5 Nf3 Be7.} ({Black should try} 11... b5 $14 12. Be3 Bxe3 13. Nxe3 Bb7) 12. e3 {[%emt 0:04:31] [#]} (12. Be3 $16) 12... Be7 $146 {[%emt 0:00:29]} ({Predecessor:} 12... Rd8 13. Rxd8+ Nxd8 14. Nfe5 Nd6 15. b4 Nxc4 16. Nxc4 Be7 17. Bb2 Bd7 18. Na5 Bc6 19. Nxc6 bxc6 20. Rc1 a5 21. b5 Rb8 22. a4 cxb5 23. Be5 Rb6 24. Bc7 Ra6 25. axb5 {1-0 (25) Tuominen,R (2272)-Fjellengen,B (1899) Copenhagen 2007}) 13. b4 {[%emt 0:24:10][%cal Bb2b4,Bb4b5][%mdl 32]} (13. Ne1 $5 {[%cal Rg2e4]} f5 14. b4 $16) 13... Bf6 {[%emt 0:00:29] White now steadily converts the win.} (13... Nc3 $14) 14. Bb2 $16 {[%emt 0:01:20]} Bxb2 {[%emt 0:02:12]} 15. Nxb2 {[%emt 0:00:12][%cal Bc4b2,Bb2a4,Ba4b6][%mdl 32]} a5 {[%emt 0:26:35]} (15... Nc3 $16) 16. b5 $18 {[%emt 0:09:23]} Ne7 {[%emt 0:00:07]} 17. Rac1 {[%emt 0:03:51] Prevents Nc3.} Nd5 {[%emt 0:01:14]} 18. Na4 {[%emt 0:04:27] Prevents Ndc3.} Rb8 {[%emt 0:17:00]} 19. Ne5 {[%emt 0:04:32] Inhibits Bd7.} Nef6 {[%emt 0:00:44]} (19... f6 {was necessary.} 20. Bxe4 fxe5) 20. e4 {[%emt 0:01:04]} Ne7 {[%emt 0:00:01]} 21. Nb6 {[%emt 0:01:55]} Ng6 {[%emt 0:00:09]} 22. f4 {[%emt 0:01:12]} (22. Nxc8 Rfxc8 23. Rxc8+ Rxc8 $16) 22... Nxe5 {[%emt 0:01:35]} 23. fxe5 {[%emt 0:00:10]} ({And not} 23. Nxc8 Rfxc8 24. fxe5 Ng4 $17) 23... Ng4 {[%emt 0:00:04]} 24. Rc5 {[%emt 0:00:59]} ({Weaker is} 24. Nxc8 Rfxc8 25. b6 Ne3 $17) 24... f6 {[%emt 0:05:16]} 25. Rdc1 {[%emt 0:00:05]} Nxe5 {[%emt 0:00:21][%cal Oe5d7]} 26. Rxc8 {[%emt 0:00:12]} ({Less strong is} 26. Nxc8 Nd3 $18) 26... Rbxc8 {[%emt 0:00:08]} 27. Rxc8 {[%emt 0:00:05]} Rxc8 {[%emt 0:00:26]} 28. Nxc8 {[%emt 0:00:08]} Nc4 {[%emt 0:00:01]} 29. Bf1 {[%emt 0:01:05] Weighted Error Value: White=0.10 (very precise) /Black=0.45} 1-0

[Event "Hungarian Youth-ch U14 2022"]
[Site "Eger"]
[Date "2022.07.23"]
[Round "1.3"]
[White "Gergely, Daniel"]
[Black "Csernyik, Mark"]
[Result "1/2-1/2"]
[ECO "E70"]
[WhiteElo "2053"]
[BlackElo "2022"]
[Annotator "TA"]
[PlyCount "97"]
[EventDate "2022.07.21"]
[EventType "tourn"]
[EventCountry "HUN"]
[SourceTitle "playchess.com"]
[Source "ChessBase"]
[SourceQuality "1"]
[TimeControl "40/5400+30:1800+30"]

{[%evp 10,97,39,42,56,33,51,34,69,75,64,61,76,65,86,78,86,91,131,141,156,116,115,93,97,101,109,95,110,36,160,139,143,143,133,149,201,97,197,202,185,102,125,68,207,223,526,551,520,495,2082,135,102,115,123,0,57,55,123,123,123,123,123,123,123,123,107,63,63,63,81,71,183,88,88,-21,-21,-28,41,0,0,0,0,0,0,0,0,-20,-20,-20]} 1. d4 {[%emt 0:00:37]} Nf6 {[%emt 0:00:55]} 2. c4 {[%emt 0:00:18]} g6 {[%emt 0:00:43]} 3. Nc3 {[%emt 0:00:31]} Bg7 {[%emt 0:00:20]} 4. e4 {[%emt 0:00:16]} d6 {[%emt 0:00:10]} 5. Bg5 {[%emt 0:00:14]} O-O {[%emt 0:01:47]} 6. Qd2 {[%emt 0:00:23]} a5 {[%emt 0:16:30] E70: King's Indian: Miscellaneous lines with 4 e4, including 5 Nge2 and 5 Bd3 0-0 6 Nge2.} 7. Be2 {[%emt 0:03:58]} c6 {[%emt 0:12:26]} 8. Nf3 {[%emt 0:08:29] [#]} Bg4 $146 {[%emt 0:05:49][%cal Oe7e5] White is slightly better.} ({Predecessor:} 8... a4 9. O-O Qa5 10. h3 Nbd7 11. Rfe1 e5 12. Bf1 Re8 13. d5 cxd5 14. cxd5 Nc5 {½-½ (39) Motuz,K (2336)-Bezuch,M (2237) Slovakia 2015}) 9. h3 {[%emt 0:04:08][%cal Bh2h3,Bh3h4,Bh4h5,Bh5h6][%mdl 32]} Bxf3 {[%emt 0:02:20]} 10. Bxf3 {[%emt 0:00:29]} e5 {[%emt 0:01:02]} 11. d5 {[%emt 0:03:27]} Qc7 {[%emt 0:08:15]} 12. h4 {[%emt 0:10:16]} Nbd7 {[%emt 0:03:37]} 13. h5 {[%emt 0:08:52]} Nb6 {[%emt 0:08:52]} 14. Be2 {[%emt 0:06:38]} Rac8 {[%emt 0:10:46]} 15. h6 {[%emt 0:10:33]} Bh8 {[%emt 0:00:55]} 16. O-O {[%emt 0:01:52]} cxd5 {[%emt 0:02:09]} 17. cxd5 {[%emt 0:02:08]} Nc4 {[%emt 0:00:56] Prevents Qe3.} 18. Bxc4 {[%emt 0:01:23]} Qxc4 {[%emt 0:00:07]} 19. f3 {[%emt 0:02:52]} (19. Qe3 $16) 19... b5 {[%emt 0:01:21]} (19... Nd7 $14) 20. Rfc1 {[%emt 0:03:20]} b4 {[%emt 0:02:58]} 21. Na4 $36 {[%emt 0:03:58][%mdl 2048] White is on the roll.} Qa6 {[%emt 0:04:34]} 22. b3 {[%emt 0:01:48]} Nd7 {[%emt 0:01:52]} (22... Nh5 $16 {is a better defense.} 23. Rc6 Rxc6 24. dxc6 Qxc6) 23. Be7 {[%emt 0:07:50]} (23. Rc6 $1 $18 {[%cal Rc6a6] and the rest is easy.} Rxc6 24. dxc6 Qxc6 25. Rc1) 23... Rxc1+ {[%emt 0:01:45]} (23... Rfe8 $16 24. Rxc8 Rxc8) 24. Rxc1 $18 {[%emt 0:00:25]} ({Weaker is} 24. Qxc1 Rc8 25. Qf1 Qa7+ 26. Qf2 Qxf2+ 27. Kxf2 Bf6 28. Bxf6 (28. Bxd6 Bg5 $14) 28... Nxf6 $14) 24... Re8 {[%emt 0:00:18]} 25. Bg5 {[%emt 0:00:35]} (25. Bh4 $1 $18) 25... Rc8 $16 {[%emt 0:01:30] Prevents Rc6.} 26. Rc2 {[%emt 0:04:04] White is more active.} (26. Kh2 $16) 26... f6 {[%emt 0:02:10]} (26... Bf6 $1 $14 27. Be3 Bd8) 27. Be3 {[%emt 0:00:41]} Kf7 $2 {[%emt 0:01:39]} (27... f5 28. exf5 gxf5) 28. Qc1 $18 {[%emt 0:00:26]} Rxc2 {[%emt 0:00:39]} 29. Qxc2 {[%emt 0:00:05]} Ke7 {[%emt 0:00:53]} (29... Nf8 $142 30. Nb6 Qa7) 30. Qc4 $2 {[%emt 0:05:35]} (30. Qc7 $18 {is the precise move to win. White threatens Nb6 and mate.} Qa8 31. Nb6) 30... Qxc4 $16 {[%emt 0:01:54]} 31. bxc4 {[%emt 0:00:06][%mdl 4096] Endgame Black must now prevent g4. KBN-KBN} f5 {[%emt 0:00:17]} 32. c5 {[%emt 0:02:47]} ({White should try} 32. Kf2 $1 $16) 32... dxc5 {[%emt 0:00:55]} (32... fxe4 $11 33. fxe4 Nf6) 33. Nxc5 $14 {[%emt 0:01:13]} Nxc5 {[%emt 0:00:26]} ({Better is} 33... Nb6 $14) 34. Bxc5+ $11 {[%emt 0:00:07] KB-KB} Kd7 {[%emt 0:00:31]} 35. Kf2 {[%emt 0:01:29] aiming for Ke3.} Bf6 {[%emt 0:00:33]} 36. Ke2 $1 {[%emt 0:00:46]} Bg5 {[%emt 0:01:29] [#]} 37. Bf8 $1 {[%emt 0:02:53]} a4 {[%emt 0:02:38]} 38. Bxb4 {[%emt 0:00:21] And now Bf8 would win.} Bxh6 {[%emt 0:00:09]} 39. Kd3 {[%emt 0:00:54]} fxe4+ {[%emt 0:01:08]} 40. fxe4 {[%emt 0:00:00]} Bc1 {[%emt 0:00:00] [#]} (40... Bg7 $16 {was necessary.}) 41. Kc4 {[%emt 0:04:18]} (41. Kc2 $1 $18 {[%cal Rc2c1] is more deadly.} Bg5 42. Kb2) 41... h5 $16 {[%emt 0:04:37]} 42. a3 {[%emt 0:02:20]} (42. Bc3 $16) 42... g5 $11 {[%emt 0:00:53]} 43. Kb5 {[%emt 0:16:35]} g4 {[%emt 0:00:45]} (43... h4 $1 $11 44. Kxa4 g4) 44. g3 {[%emt 0:00:23]} ({Reject} 44. Kxa4 h4 45. Bc5 Bb2 $15) 44... h4 {[%emt 0:01:58] The position is equal.} 45. gxh4 {[%emt 0:03:24] Threatens to win with Bc5.} g3 {[%emt 0:00:24]} 46. Be1 {[%emt 0:01:31]} g2 {[%emt 0:00:44]} 47. Bf2 {[%emt 0:00:18]} Bxa3 {[%emt 0:00:40]} (47... Bb2 $5 48. Bg1 Bxa3 49. Kxa4 Bb2 $11) 48. Kxa4 {[%emt 0:04:27]} Bb2 {[%emt 0:00:20] ( -> ...Bd4)} 49. Bg1 $1 {[%emt 0:00:28] White really could win this.  Weighted Error Value: White=0.38/Black=0.35} 1/2-1/2

[Event "Hungarian Youth-ch U14 2022"]
[Site "Eger"]
[Date "2022.07.23"]
[Round "1.4"]
[White "Kolimar, Kristof Pal"]
[Black "Matyassy, Lazar"]
[Result "1-0"]
[ECO "D85"]
[WhiteElo "2160"]
[BlackElo "2132"]
[Annotator "TA"]
[PlyCount "105"]
[EventDate "2022.07.21"]
[EventType "tourn"]
[EventCountry "HUN"]
[SourceTitle "playchess.com"]
[Source "ChessBase"]
[SourceQuality "1"]
[TimeControl "40/5400+30:1800+30"]

{[%evp 14,105,30,31,27,29,41,33,33,16,30,22,42,43,96,79,89,73,79,81,110,92,99,89,114,92,138,134,144,138,160,164,143,153,200,178,229,218,206,223,220,221,214,178,186,184,172,53,195,207,209,192,191,189,184,0,196,80,39,50,47,91,87,95,92,93,259,251,217,198,313,287,287,287,351,289,605,598,659,635,1872,1753,1692,1598,1575,1306,5197,3435,6242,5691,6605,4614,2950,2199]} 1. d4 {[%emt 0:00:34]} Nf6 {[%emt 0:00:39]} 2. c4 {[%emt 0:00:06]} g6 {[%emt 0:00:06]} 3. Nc3 {[%emt 0:00:05]} d5 {[%emt 0:00:06]} 4. cxd5 {[%emt 0:00:02]} Nxd5 {[%emt 0:00:13]} 5. e4 {[%emt 0:00:03]} Nxc3 {[%emt 0:00:08]} 6. bxc3 {[%emt 0:00:01]} Bg7 {[%emt 0:00:11]} 7. Qa4+ {[%emt 0:00:04] 7.Nf3 gains popularity.} c6 {[%emt 0:09:44]} 8. Nf3 {[%emt 0:00:18]} O-O {[%emt 0:00:13][%cal Oc6c5] D90: Grünfeld: 4 Nf3 Bg7 sidelines.} 9. Be2 {[%emt 0:00:12]} Bg4 {[%emt 0:08:08]} 10. O-O {[%emt 0:00:31] [#]} e5 $146 {[%emt 0:08:05] White is slightly better.} ({Predecessor:} 10... Nd7 11. Bg5 h6 12. Bh4 Re8 13. h3 Bxf3 14. Bxf3 Qc7 15. e5 e6 16. Rab1 a6 {1-0 (66) Nesterov,A (2514)-Ovchinnikov,V (2426) Chess.com INT 2021}) 11. Rd1 {[%emt 0:20:54]} exd4 {[%emt 0:10:55]} 12. cxd4 {[%emt 0:00:33] With the idea Rb1.} Re8 {[%emt 0:17:49]} 13. Bg5 {[%emt 0:18:13]} Qc7 {[%emt 0:05:14]} (13... Qc8 $14) 14. Qc2 $1 $16 {[%emt 0:09:07]} Qa5 {[%emt 0:02:29] Hoping for ...Bxf3.} 15. Bd2 {[%emt 0:06:16]} Qc7 {[%emt 0:01:05]} 16. Be3 {[%emt 0:05:45]} Nd7 {[%emt 0:03:59]} 17. h3 {[%emt 0:02:17]} Bxf3 {[%emt 0:01:32]} 18. Bxf3 {[%emt 0:00:10]} Rad8 {[%emt 0:08:17]} 19. Rac1 {[%emt 0:01:15]} Qb8 {[%emt 0:02:20]} ({Black should play} 19... Qa5) 20. a4 {[%emt 0:14:13][%cal Ba2a4,Ba4a5][%mdl 32]} Nf8 {[%emt 0:08:39]} 21. Qc4 {[%emt 0:09:20]} Nd7 {[%emt 0:04:52]} 22. a5 {[%emt 0:02:26]} a6 {[%emt 0:02:12]} 23. Rb1 {[%emt 0:02:44] White is more active.} Nf6 {[%emt 0:02:52]} (23... c5 $16 {was worth a try.}) 24. d5 $18 {[%emt 0:01:47]} Nd7 {[%emt 0:01:14]} (24... cxd5 $142 25. exd5 Nd7) 25. Qb4 {[%emt 0:01:10]} (25. dxc6 $6 Ne5 26. Qb3 Nxc6 $16) 25... cxd5 {[%emt 0:00:14]} 26. exd5 {[%emt 0:00:25]} (26. Rxd5 $6 Nf6 $16) 26... Rxe3 {[%emt 0:01:34]} 27. fxe3 {[%emt 0:00:02]} Qe5 {[%emt 0:00:29]} 28. Qf4 {[%emt 0:01:18]} (28. Qxb7 Qxe3+ 29. Kh1 Be5) 28... Qc3 {[%emt 0:00:11]} 29. Rdc1 {[%emt 0:02:28]} Qa3 {[%emt 0:00:52]} 30. Be4 {[%emt 0:02:08]} (30. Qc7 $18 Qxe3+ 31. Kh1) 30... Re8 {[%emt 0:00:22] [#]} (30... Be5 $1 $14 31. Qh4 Qxe3+ 32. Kh1 Rb8) 31. Rf1 $1 {[%emt 0:00:35]} ({Avoid the trap} 31. Rc7 $2 Be5 32. Qf2 Bxc7 $19) 31... f5 {[%emt 0:00:02]} 32. Bf3 {[%emt 0:00:40] Strongly threatening Qc7.} Be5 {[%emt 0:00:14] Against Qc7} 33. Qg5 {[%emt 0:00:15]} Bf6 {[%emt 0:00:04]} 34. Qf4 {[%emt 0:00:00]} Be5 {[%emt 0:00:10]} 35. Qb4 {[%emt 0:00:47]} (35. Qh6 $18 {is more deadly.}) 35... Qxe3+ $16 {[%emt 0:00:36]} 36. Kh1 {[%emt 0:00:00] Black must now prevent d6.} Qg5 $1 {[%emt 0:00:12] ( -> ...Qg3)} 37. Qe1 {[%emt 0:00:58]} (37. Qxb7 $2 {[#] leads to mate.} Qg3 $1 38. Kg1 Qh2+ 39. Kf2 Bg3#) 37... Nf6 {[%emt 0:00:38] Black is on the road to losing.} 38. h4 {[%emt 0:01:05]} ({Resist} 38. Rxb7 Bg3 39. Qc3 Be5) 38... Qf4 {[%emt 0:01:23][%csl Ge5][%cal Rf4h2]} 39. g3 $1 $36 {[%emt 0:00:01][%mdl 2048] Keeping Black busy.} Qxg3 {[%emt 0:01:19]} (39... Qc4 $16 {keeps fighting.}) 40. Qxg3 $18 {[%emt 0:00:00]} Bxg3 {[%emt 0:00:00]} 41. Rxb7 {[%emt 0:02:45]} Rd8 {[%emt 0:19:41]} (41... Bxh4 $142 42. Ra7 h5 43. Rxa6 Kg7) 42. Rb6 {[%emt 0:12:47][%csl LRa6,LRf6]} Bxh4 {[%emt 0:03:15]} 43. Rxa6 {[%emt 0:01:06] aiming for Rc6.} Kg7 {[%emt 0:01:10]} 44. Rd1 {[%emt 0:04:26]} g5 $2 {[%emt 0:04:20]} (44... Nd7 45. Kg2 g5) 45. d6 {[%emt 0:04:37] White is clearly winning.} g4 {[%emt 0:00:05]} 46. Ra8 {[%emt 0:01:06]} gxf3 {[%emt 0:03:35]} 47. Rxd8 {[%emt 0:00:05]} Ne4 {[%emt 0:00:08]} 48. Rd7+ {[%emt 0:02:17]} Kh6 {[%emt 0:00:24]} 49. Rf1 {[%emt 0:01:46]} Ng3+ {[%emt 0:01:24]} 50. Kg1 {[%emt 0:00:02]} Ne2+ {[%emt 0:00:42]} 51. Kh2 {[%emt 0:00:03] Threatening mate with a6.} Kg5 {[%emt 0:00:23]} 52. Rxf3 {[%emt 0:00:10] a6 would kill now.} Kg4 {[%emt 0:00:06]} 53. Re3 {[%emt 0:00:34] Weighted Error Value: White=0.15 (very precise) /Black=0.35} 1-0

[Event "Hungarian Youth-ch U14 2022"]
[Site "Eger"]
[Date "2022.07.23"]
[Round "1.5"]
[White "Szakmary, Domonkos"]
[Black "Turcsanyi, Vince Gergo"]
[Result "0-1"]
[ECO "C71"]
[WhiteElo "1967"]
[BlackElo "2117"]
[Annotator "TA"]
[PlyCount "46"]
[EventDate "2022.07.21"]
[EventType "tourn"]
[EventCountry "HUN"]
[SourceTitle "playchess.com"]
[Source "ChessBase"]
[SourceQuality "1"]
[TimeControl "40/5400+30:1800+30"]

{[%evp 9,46,14,89,99,114,115,110,99,180,129,132,38,38,37,29,29,23,30,27,5,13,13,5,0,0,0,0,-13,-2,-13,0,-548,-543,-534,-527,-600,-620,-1174,-545]} 1. e4 {[%emt 0:00:31]} e5 {[%emt 0:00:38]} 2. Nf3 {[%emt 0:00:04]} Nc6 {[%emt 0:00:08]} 3. Bb5 {[%emt 0:00:04]} a6 {[%emt 0:00:37]} 4. Ba4 {[%emt 0:00:07]} d6 {[%emt 0:01:24]} 5. c4 {[%emt 0:00:22]} f5 {[%emt 0:10:57]} (5... Bg4 $11 {remains equal.}) 6. exf5 $16 {[%emt 0:00:34] C71: Ruy Lopez: Deferred Steinitz Variation, sidelines.} Bxf5 {[%emt 0:05:38]} 7. O-O {[%emt 0:00:20]} Be7 {[%emt 0:29:06] [#]} 8. d4 $146 {[%emt 0:02:39] White is better.} ({Predecessor:} 8. Re1 Nf6 9. d4 e4 10. d5 exf3 11. dxc6 b5 12. cxb5 axb5 13. Bb3 d5 14. Qxf3 {½-½ (26) Thilakarathne,G (2209)-Setyaki,A (2336) Puchong 2018}) 8... e4 {[%emt 0:04:21] [#]} (8... Bd7 $16) 9. Nfd2 {[%emt 0:05:37]} (9. d5 $1 $18 {[%cal Rd5c6]} exf3 10. Qxf3 (10. dxc6 b5 $16)) 9... d5 {[%emt 0:02:28]} 10. cxd5 {[%emt 0:12:08]} ({White should play} 10. Nc3 $16) 10... Qxd5 $14 {[%emt 0:00:36]} 11. Nc3 {[%emt 0:00:37]} Qxd4 {[%emt 0:02:54] [#]} 12. Ndxe4 $1 {[%emt 0:02:30]} O-O-O {[%emt 0:06:52]} 13. Bxc6 {[%emt 0:03:23]} Qxd1 {[%emt 0:00:18]} 14. Rxd1 {[%emt 0:01:15]} (14. Nxd1 $5 {[%cal Rd1e3]} bxc6 15. Ng5 $11) 14... Rxd1+ {[%emt 0:00:48]} 15. Nxd1 {[%emt 0:00:03][%cal Oe4g3] aiming for Ng3! Pair of Knights!} bxc6 {[%emt 0:00:01]} 16. Ndc3 {[%emt 0:05:27]} Nf6 {[%emt 0:04:22]} 17. Ng3 {[%emt 0:01:06]} Bg6 {[%emt 0:02:00]} 18. Be3 {[%emt 0:03:24]} Rd8 {[%emt 0:00:31]} 19. Rd1 {[%emt 0:01:45]} Nd5 {[%emt 0:03:47]} 20. Bd4 $2 {[%emt 0:02:37][%mdl 8192]} (20. Nge4 $11 {and White has nothing to worry.}) 20... Nxc3 $19 {[%emt 0:00:52] Black is clearly winning.} 21. bxc3 {[%emt 0:00:10]} c5 {[%emt 0:00:14]} 22. Re1 {[%emt 0:00:11]} cxd4 {[%emt 0:00:13]} 23. Rxe7 {[%emt 0:00:05]} d3 {[%emt 0:00:36] Weighted Error Value: White=0.89/Black=0.18 (very precise)} (23... dxc3 $142 24. f3 c2) 0-1

[Event "Hungarian Youth-ch U14 2022"]
[Site "Eger"]
[Date "2022.07.23"]
[Round "1.6"]
[White "Kovacs, Reka"]
[Black "Lazsadi, Kerka Lilla"]
[Result "1-0"]
[ECO "C02"]
[WhiteElo "1716"]
[BlackElo "1674"]
[Annotator "NA RC COMBH"]
[PlyCount "67"]
[EventDate "2022.07.21"]
[EventType "tourn"]
[EventCountry "HUN"]
[SourceTitle "playchess.com"]
[Source "ChessBase"]
[SourceQuality "1"]
[TimeControl "40/5400+30:1800+30"]

1. e4 {[%emt 0:00:33]} e6 {[%emt 0:00:43]} 2. d4 {[%emt 0:00:09]} d5 {[%emt 0:00:08]} 3. e5 {[%emt 0:00:07]} c5 {[%emt 0:00:07]} 4. c3 {[%emt 0:00:10]} Nc6 {[%emt 0:00:05]} 5. Nf3 {[%emt 0:00:08]} Bd7 {[%emt 0:00:06]} 6. Be2 {[%emt 0:00:06]} Nh6 {[%emt 0:00:45]} 7. Na3 {[%emt 0:07:28]} cxd4 {[%emt 0:01:03]} 8. cxd4 {[%emt 0:00:08]} f6 {[%emt 0:01:18]} 9. O-O {[%emt 0:03:10]} Nf7 {[%emt 0:00:38]} 10. Bf4 {[%emt 0:02:17]} Be7 {[%emt 0:01:08]} 11. Nc2 {[%emt 0:04:26]} O-O {[%emt 0:01:00]} 12. Qd2 {[%emt 0:09:56]} fxe5 {[%emt 0:11:47]} 13. Nxe5 {[%emt 0:08:12]} Nfxe5 {[%emt 0:08:59]} 14. dxe5 {[%emt 0:03:52]} Qb6 {[%emt 0:09:23]} 15. Rab1 {[%emt 0:05:14]} Nb4 {[%emt 0:05:38]} 16. Be3 {[%emt 0:05:30]} Qa5 {[%emt 0:03:27]} 17. Nd4 {[%emt 0:12:52]} Qc7 {[%emt 0:06:50]} 18. a3 {[%emt 0:01:14]} Nc6 {[%emt 0:00:46]} 19. f4 {[%emt 0:02:07]} Nxd4 {[%emt 0:03:21]} 20. Qxd4 {[%emt 0:00:37]} b6 {[%emt 0:02:39]} 21. Rbc1 {[%emt 0:03:51]} Bc5 {[%emt 0:02:18]} 22. Qc3 {[%emt 0:01:40]} Bxe3+ {[%emt 0:02:04]} 23. Qxe3 {[%emt 0:00:04]} Qd8 {[%emt 0:00:43]} 24. Rc3 {[%emt 0:02:39]} Rc8 {[%emt 0:01:12]} 25. Rfc1 {[%emt 0:01:21]} Qe7 {[%emt 0:00:53]} 26. Rc7 {[%emt 0:03:49]} Rxc7 {[%emt 0:06:57]} 27. Rxc7 {[%emt 0:00:08]} Rc8 {[%emt 0:07:46]} 28. Rxa7 {[%emt 0:07:00]} d4 {[%emt 0:05:36]} 29. Qxd4 {[%emt 0:11:56]} Rc1+ {[%emt 0:02:04]} 30. Kf2 {[%emt 0:00:10]} Qh4+ {[%emt 0:00:44]} 31. Ke3 {[%emt 0:00:21]} Qxh2 {[%emt 0:04:59]} 32. Ra8+ {[%emt 0:01:37]} Bc8 {[%emt 0:01:16]} 33. Qd8+ {[%emt 0:00:17]} Kf7 {[%emt 0:00:12]} 34. Ra7+ {[%emt 0:00:07]} 1-0

[Event "Hungarian Youth-ch U14 2022"]
[Site "Eger"]
[Date "2022.07.23"]
[Round "1.7"]
[White "Nandin-Erdene, Davaademberel"]
[Black "Toth, Timea"]
[Result "0-1"]
[ECO "B38"]
[WhiteElo "1789"]
[BlackElo "1964"]
[Annotator "TA"]
[PlyCount "61"]
[EventDate "2022.07.21"]
[EventType "tourn"]
[EventCountry "HUN"]
[SourceTitle "playchess.com"]
[Source "ChessBase"]
[SourceQuality "1"]
[TimeControl "40/5400+30:1800+30"]

{[%evp 18,61,51,50,91,45,106,51,47,50,50,52,52,50,47,54,56,44,52,0,0,0,3,14,2,9,26,7,7,7,31,0,0,0,337,337,337,337,337,337,620,550,906,619,1060,1041]} 1. e4 {[%emt 0:00:33]} c5 {[%emt 0:00:32]} 2. Nf3 {[%emt 0:00:06]} Nc6 {[%emt 0:00:03]} 3. d4 {[%emt 0:00:07]} cxd4 {[%emt 0:00:03]} 4. Nxd4 {[%emt 0:00:06]} g6 {[%emt 0:00:04]} 5. c4 {[%emt 0:00:16]} Bg7 {[%emt 0:00:04]} 6. Be3 {[%emt 0:00:08]} Nf6 {[%emt 0:00:08]} 7. Nc3 {[%emt 0:00:08]} O-O {[%emt 0:00:08]} 8. Be2 {[%emt 0:00:06]} d6 {[%emt 0:00:05]} 9. O-O {[%emt 0:00:11]} Bd7 {[%emt 0:00:04]} 10. f3 {[%emt 0:00:10]} a5 {[%emt 0:01:50] B38: Sicilian: Maroczy Bind with 5...Bg7 and 7...0-0.} 11. b3 {[%emt 0:01:01]} (11. Ndb5 $16) 11... Re8 {[%emt 0:02:38] [#]} ({Black should play} 11... a4 $14) 12. Qd2 {[%emt 0:00:52]} (12. Ndb5 $1 $16) 12... Nxd4 $14 {[%emt 0:00:06] White is slightly better.} 13. Bxd4 {[%emt 0:00:28]} Bc6 {[%emt 0:00:07]} 14. Rfd1 {[%emt 0:01:18]} Nd7 {[%emt 0:00:32]} 15. Be3 {[%emt 0:05:58]} Qb8 {[%emt 0:24:55]} 16. Rab1 {[%emt 0:01:43]} Nc5 {[%emt 0:30:00]} 17. a3 {[%emt 0:02:55] [#]} Rd8 $146 {[%emt 0:02:41]} ({Predecessor:} 17... Be5 18. b4 axb4 19. axb4 Ra3 20. bxc5 Rxc3 21. cxd6 Qxd6 22. Qxc3 Qxd1+ 23. Rxd1 Bxc3 24. Rd3 {½-½ (24) Eklund,L (2417)-Andeer,S (2448) ICCF email 2007}) 18. b4 {[%emt 0:09:20]} (18. Bg5 $14) 18... axb4 {[%emt 0:02:42]} 19. axb4 {[%emt 0:00:20]} Na4 {[%emt 0:02:35]} 20. Nxa4 {[%emt 0:02:04]} Bxa4 {[%emt 0:00:12]} 21. Rdc1 {[%emt 0:01:30]} b5 {[%emt 0:02:46]} 22. Bd4 {[%emt 0:05:42]} Bxd4+ {[%emt 0:08:07]} 23. Qxd4 {[%emt 0:00:15]} bxc4 {[%emt 0:02:36]} 24. Qxc4 {[%emt 0:06:06] Strongly threatening b5.} (24. b5 $5) 24... Qb6+ {[%emt 0:07:26]} 25. Kh1 {[%emt 0:01:15]} Rdc8 $2 {[%emt 0:04:23][%mdl 8192]} (25... Be8 $11 {and Black is okay.}) 26. Qxc8+ $18 {[%emt 0:16:37]} Rxc8 {[%emt 0:00:01]} 27. Rxc8+ {[%emt 0:00:10]} Kg7 {[%emt 0:00:04]} 28. b5 {[%emt 0:03:04][%cal Bb4b5,Bb5b6,Bb6b7][%mdl 32] Prevents Bc6.} Qf2 $2 {[%emt 0:06:13] [#]} (28... h5 29. Rc4 Bxb5) 29. b6 $1 {[%emt 0:11:52] White is clearly winning.} Qxe2 {[%emt 0:02:36]} (29... Bd1 30. h3) 30. Rcc1 {[%emt 0:01:33] Hoping for b7.} Qa6 {[%emt 0:00:57]} 31. b7 {[%emt 0:00:14][%mdl 32768] Weighted Error Value: White=0.32/Black=0.59. Loss on time!?} 0-1